fUSD/lending_fUSD_20241106
["ID","MTS","AMOUNT","RATE_DAILY","PERIOD"]
[341476662,1730920251775,-500.0,0.00027945,2]
[341476663,1730920251784,-500.0,0.00027945,2]
[341476664,1730920251794,-500.0,0.00027945,2]
[341476665,1730920251803,-500.0,0.00027945,2]
[341476666,1730920251812,-500.0,0.00027945,2]
[341476667,1730920251822,-500.0,0.00027945,2]
[341476668,1730920251831,-500.0,0.00027945,2]
[341476669,1730920251843,-500.0,0.00027945,2]
[341476670,1730920251852,-500.0,0.00027945,2]
[341476671,1730920251861,-500.0,0.00027945,2]
[341476672,1730920251871,-626.82764797,0.00027945,2]
[341476673,1730920251880,-1403.53,0.00027945,2]
[341476674,1730920251889,-951.98,0.00027945,2]
[341476675,1730920251899,-500.0,0.00027945,2]
[341476676,1730920251908,-500.0,0.00027945,2]
[341476677,1730920251917,-500.0,0.00027945,2]
[341476678,1730920251927,-500.0,0.00027945,2]
[341476679,1730920251936,-500.0,0.00027945,2]
[341476680,1730920251946,-500.0,0.00027945,2]
[341476681,1730920251955,-1718.49,0.00027945,2]
[341476682,1730920251964,-500.0,0.00027945,2]
[341476683,1730920251974,-770.26,0.00027945,2]
[341476684,1730920251983,-534.23,0.00027945,2]
[341476685,1730920251994,-886.88,0.00027945,2]
[341476686,1730920252003,-500.0,0.00027945,2]
[341476687,1730920252013,-500.0,0.00027945,2]
[341476688,1730920252023,-500.0,0.00027945,2]
[341476689,1730920252033,-500.0,0.00027945,2]
[341476690,1730920252043,-500.0,0.00027945,2]
[341476691,1730920252052,-591.92,0.00027945,2]
[341476692,1730920252062,-3128.73,0.00027945,2]
[341476693,1730920252072,-500.0,0.00027945,2]
[341476694,1730920252081,-1587.38,0.00027945,2]
[341476695,1730920252093,-500.0,0.00027945,2]
[341476696,1730920252103,-500.0,0.00027945,2]
[341476697,1730920252112,-500.0,0.00027945,2]
[341476698,1730920252121,-1225.74,0.00027945,2]
[341476699,1730920252131,-500.0,0.00027945,2]
[341476700,1730920252140,-672.38,0.00027945,2]
[341476701,1730920252151,-500.0,0.00027945,2]
[341476702,1730920252159,-330.49477661,0.00027945,2]
[341476703,1730920252169,-631.72,0.00027945,2]
[341476704,1730920252178,-500.0,0.00027945,2]
[341476705,1730920252187,-1710.63,0.00027945,2]
[341476706,1730920252196,-533.22336333,0.00027945,2]
[341476707,1730920252205,-500.0,0.00027945,2]
[341476708,1730920252214,-500.0,0.00027945,2]
[341476709,1730920252223,-500.0,0.00027945,2]
[341476710,1730920252232,-500.0,0.00027945,2]
[341476711,1730920252242,-500.0,0.00027945,2]
[341476712,1730920252252,-500.0,0.00027945,2]
[341476713,1730920252262,-200.0,0.00027945,2]
[341476714,1730920252271,-813.74,0.00027945,2]
[341476715,1730920252280,-500.0,0.00027945,2]
[341476716,1730920252289,-500.0,0.00027945,2]
[341476717,1730920252299,-500.0,0.00027945,2]
[341476718,1730920252310,-500.0,0.00027945,2]
[341476719,1730920252319,-500.0,0.00027945,2]
[341476720,1730920252330,-500.0,0.00027945,2]
[341476721,1730920252342,-546.65882682,0.00027945,2]
[341476722,1730920252351,-747.59,0.00027945,2]
[341476723,1730920252360,-1093.9,0.00027945,2]
[341476724,1730920252369,-500.0,0.00027945,2]
[341476725,1730920252379,-500.0,0.00027945,2]
[341476726,1730920252388,-500.0,0.00027945,2]
[341476727,1730920252397,-500.0,0.00027945,2]
[341476728,1730920252406,-500.0,0.00027945,2]
[341476729,1730920252415,-500.0,0.00027945,2]
[341476730,1730920252424,-500.0,0.00027945,2]
[341476731,1730920252434,-559.12,0.00027945,2]
[341476732,1730920252444,-500.0,0.00027945,2]
[341476733,1730920252454,-500.0,0.00027945,2]
[341476734,1730920252463,-500.0,0.00027945,2]
[341476735,1730920252473,-500.0,0.00027945,2]
[341476736,1730920252483,-869.22,0.00027945,2]
[341476737,1730920252492,-500.0,0.00027945,2]
[341476738,1730920252501,-815.31,0.00027945,2]
[341476739,1730920252512,-500.0,0.00027945,2]
[341476740,1730920252524,-828.15,0.00027945,2]
[341476741,1730920252535,-550.18312992,0.00027945,2]
[341476742,1730920252545,-948.69,0.00027945,2]
[341476743,1730920252554,-500.0,0.00027945,2]
[341476744,1730920252564,-283.55559575,0.00027945,2]
[341476745,1730920252574,-500.0,0.00027945,2]
[341476746,1730920252586,-500.0,0.00027945,2]
[341476747,1730920252595,-500.0,0.00027945,2]
[341476748,1730920252604,-500.0,0.00027945,2]
[341476749,1730920252614,-500.0,0.00027945,2]
[341476750,1730920252625,-6450.1,0.00027945,2]
[341476751,1730920252639,-712.2,0.00027945,2]
[341476752,1730920252650,-500.0,0.00027945,2]
[341476753,1730920252660,-500.0,0.00027945,2]
[341476754,1730920252671,-1961.14,0.00027945,2]
[341476755,1730920252681,-2553.79,0.00027945,2]
[341476756,1730920252692,-500.0,0.00027945,2]
[341476757,1730920252704,-933.76,0.00027945,2]
[341476758,1730920252715,-500.0,0.00027945,2]
[341476759,1730920252726,-500.0,0.00027945,2]
[341476760,1730920252738,-619.47,0.00027945,2]
[341476761,1730920252749,-500.0,0.00027945,2]
[341476762,1730920252759,-500.0,0.00027945,2]
[341476763,1730920252769,-1552.17,0.00027945,2]
[341476764,1730920252779,-500.0,0.00027945,2]
[341476765,1730920252789,-852.71,0.00027945,2]
[341476766,1730920252800,-985.31,0.00027945,2]
[341476767,1730920252810,-500.0,0.00027945,2]
[341476768,1730920252822,-500.0,0.00027945,2]
[341476769,1730920252831,-1319.54,0.00027945,2]
[341476770,1730920252842,-448.83528677,0.00027945,2]
[341476771,1730920252851,-500.0,0.00027945,2]
[341476772,1730920252861,-500.0,0.00027945,2]
[341476773,1730920252870,-500.0,0.00027945,2]
[341476774,1730920252880,-1040.45,0.00027945,2]
[341476775,1730920252891,-500.0,0.00027945,2]
[341476776,1730920252901,-544.73,0.00027945,2]
[341476777,1730920252910,-1047.75,0.00027945,2]
[341476778,1730920252920,-1243.71,0.00027945,2]
[341476779,1730920253000,-809.24,0.00027945,2]
[341476780,1730920253011,-500.0,0.00027945,2]
[341476781,1730920253020,-500.0,0.00027945,2]
[341476782,1730920253030,-508.7,0.00027945,2]
[341476783,1730920253039,-2961.59,0.00027945,2]
[341476784,1730920253049,-1768.07,0.00027945,2]
[341476785,1730920253058,-500.0,0.00027945,2]
[341476786,1730920253067,-500.0,0.00027945,2]
[341476787,1730920253077,-3662.42,0.00027945,2]
[341476788,1730920253087,-500.0,0.00027945,2]
[341476789,1730920253097,-254.31667639,0.00027945,2]
[341476790,1730920253106,-500.0,0.00027945,2]
[341476791,1730920253115,-626.81,0.00027945,2]
[341476792,1730920253125,-543.01,0.00027945,2]
[341476793,1730920253134,-706.05,0.00027945,2]
[341476794,1730920253144,-500.0,0.00027945,2]
[341476795,1730920253154,-505.42026769,0.00027945,2]
[341476796,1730920253163,-500.0,0.00027945,2]
[341476797,1730920253173,-500.0,0.00027945,2]
[341476798,1730920253182,-651.62,0.00027945,2]
[341476799,1730920253191,-500.0,0.00027945,2]
[341476800,1730920253201,-2251.89,0.00027945,2]
[341476801,1730920253210,-500.0,0.00027945,2]
[341476802,1730920253220,-1884.31,0.00027945,2]
[341476803,1730920253229,-483.37978033,0.00027945,2]
[341476804,1730920253239,-732.87,0.00027945,2]
[341476805,1730920253248,-500.0,0.00027945,2]
[341476806,1730920253257,-500.0,0.00027945,2]
[341476807,1730920253266,-500.0,0.00027945,2]
[341476808,1730920253275,-526.50190172,0.00027945,2]
[341476809,1730920253285,-2703.76,0.00027945,2]
[341476810,1730920253294,-759.2,0.00027945,2]
[341476811,1730920253303,-730.51,0.00027945,2]
[341476812,1730920253312,-500.0,0.00027945,2]
[341476813,1730920253322,-601.73,0.00027945,2]
[341476814,1730920253331,-500.0,0.00027945,2]
[341476815,1730920253341,-500.0,0.00027945,2]
[341476816,1730920253351,-1846.6,0.00027945,2]
[341476817,1730920253360,-500.0,0.00027945,2]
[341476818,1730920253370,-500.0,0.00027945,2]
[341476819,1730920253380,-500.0,0.00027945,2]
[341476820,1730920253389,-500.0,0.00027945,2]
[341476821,1730920253399,-500.0,0.00027945,2]
[341476822,1730920253408,-2388.47,0.00027945,2]
[341476823,1730920253417,-500.0,0.00027945,2]
[341476824,1730920253426,-217.442755,0.00027945,2]
[341476825,1730920253435,-10275.63,0.00027945,2]
[341476826,1730920253444,-500.0,0.00027945,2]
[341476827,1730920253453,-500.0,0.00027945,2]
[341476828,1730920253462,-1087.87,0.00027945,2]
[341476829,1730920253471,-516.87348787,0.00027945,2]
[341476830,1730920253481,-228.879307,0.00027945,2]
[341476831,1730920253490,-500.0,0.00027945,2]
[341476832,1730920253499,-1027.83,0.00027945,2]
[341476833,1730920253508,-934.72,0.00027945,2]
[341476834,1730920253517,-500.0,0.00027945,2]
[341476835,1730920253527,-500.0,0.00027945,2]
[341476836,1730920253536,-502.10572633,0.00027945,2]
[341476837,1730920253544,-500.0,0.00027945,2]
[341476838,1730920253553,-500.0,0.00027945,2]
[341476839,1730920253562,-680.02,0.00027945,2]
[341476840,1730920253571,-984.02,0.00027945,2]
[341476841,1730920253580,-2654.17,0.00027945,2]
[341476842,1730920253591,-500.0,0.00027945,2]
[341476843,1730920253600,-763.29,0.00027945,2]
[341476844,1730920253610,-2923.01,0.00027945,2]
[341476845,1730920253619,-500.0,0.00027945,2]
[341476846,1730920253630,-500.0,0.00027945,2]
[341476847,1730920253639,-500.0,0.00027945,2]
[341476848,1730920253648,-500.0,0.00027945,2]
[341476849,1730920253657,-1057.64,0.00027945,2]
[341476850,1730920253667,-500.0,0.00027945,2]
[341476851,1730920253677,-161.4554549,0.00027945,2]
[341476852,1730920253686,-500.0,0.00027945,2]
[341476853,1730920253695,-500.0,0.00027945,2]
[341476854,1730920253706,-500.0,0.00027945,2]
[341476855,1730920253715,-500.0,0.00027945,2]
[341476856,1730920253724,-500.0,0.00027945,2]
[341476857,1730920253734,-500.0,0.00027945,2]
[341476858,1730920253743,-500.0,0.00027945,2]
[341476859,1730920253752,-669.62,0.00027945,2]
[341476860,1730920253762,-718.6,0.00027945,2]
[341476861,1730920253771,-3084.36,0.00027945,2]
[341476862,1730920253781,-500.0,0.00027945,2]
[341476863,1730920253790,-500.0,0.00027945,2]
[341476864,1730920253800,-500.0,0.00027945,2]
[341476865,1730920253810,-727.89,0.00027945,2]
[341476866,1730920253819,-1861.65,0.00027945,2]
[341476867,1730920253829,-500.0,0.00027945,2]
[341476868,1730920253840,-36940.57,0.00027945,2]
[341476869,1730920253850,-500.0,0.00027945,2]
[341476870,1730920253859,-500.0,0.00027945,2]
[341476871,1730920253868,-1316.34,0.00027945,2]
[341476872,1730920253878,-500.0,0.00027945,2]
[341476873,1730920253887,-3009.75,0.00027945,2]
[341476874,1730920253897,-500.0,0.00027945,2]
[341476875,1730920253906,-500.0,0.00027945,2]
[341476876,1730920253915,-1149.45,0.00027945,2]
[341476877,1730920253925,-500.0,0.00027945,2]
[341476878,1730920253935,-500.0,0.00027945,2]
[341476879,1730920253945,-4459.35,0.00027945,2]
[341476880,1730920253958,-500.0,0.00027945,2]
[341476881,1730920253967,-580.25,0.00027945,2]
[341476882,1730920253979,-539.21,0.00027945,2]
[341476883,1730920253990,-6541.84,0.00027945,2]
[341476884,1730920254001,-500.0,0.00027945,2]
[341476885,1730920254010,-1631.52,0.00027945,2]
[341476886,1730920254020,-777.39,0.00027945,2]
[341476887,1730920254030,-500.0,0.00027945,2]
[341476888,1730920254039,-500.0,0.00027945,2]
[341476889,1730920254049,-500.0,0.00027945,2]
[341476890,1730920254059,-2448.68,0.00027945,2]
[341476891,1730920254069,-1675.07,0.00027945,2]
[341476892,1730920254079,-1611.55,0.00027945,2]
[341476893,1730920254091,-554.38732818,0.00027945,2]
[341476894,1730920254101,-500.0,0.00027945,2]
[341476895,1730920254114,-500.0,0.00027945,2]
[341476896,1730920254124,-2842.56,0.00027945,2]
[341476897,1730920254134,-500.0,0.00027945,2]
[341476898,1730920254144,-2090.64,0.00027945,2]
[341476899,1730920254154,-500.0,0.00027945,2]
[341476900,1730920254164,-729.17,0.00027945,2]
[341476901,1730920254173,-4119.94,0.00027945,2]
[341476902,1730920254183,-500.0,0.00027945,2]
[341476903,1730920254192,-1561.32,0.00027945,2]
[341476904,1730920254202,-500.0,0.00027945,2]
[341476905,1730920254211,-1446.82,0.00027945,2]
[341476906,1730920254220,-908.03,0.00027945,2]
[341476907,1730920254230,-500.0,0.00027945,2]
[341476908,1730920254239,-500.0,0.00027945,2]
[341476909,1730920254248,-500.0,0.00027945,2]
[341476910,1730920254258,-500.0,0.00027945,2]
[341476911,1730920254268,-500.0,0.00027945,2]
[341476912,1730920254279,-1649.61,0.00027945,2]
[341476913,1730920254289,-3168.62,0.00027945,2]
[341476914,1730920254299,-3106.24,0.00027945,2]
[341476915,1730920254309,-731.26,0.00027945,2]
[341476916,1730920254318,-3266.44,0.00027945,2]
[341476917,1730920254328,-500.0,0.00027945,2]
[341476918,1730920254341,-500.0,0.00027945,2]
[341476919,1730920254351,-500.0,0.00027945,2]
[341476920,1730920254360,-752.29,0.00027945,2]
[341476921,1730920254371,-500.0,0.00027945,2]
[341476922,1730920254380,-714.92,0.00027945,2]
[341476923,1730920254390,-2478.44,0.00027945,2]
[341476924,1730920254400,-645.24,0.00027945,2]
[341476925,1730920254409,-822.65,0.00027945,2]
[341476926,1730920254419,-1251.86,0.00027945,2]
[341476927,1730920254429,-2093.22,0.00027945,2]
[341476928,1730920254439,-500.0,0.00027945,2]
[341476929,1730920254448,-6208.06,0.00027945,2]
[341476930,1730920254458,-373.75987028,0.00027945,2]
[341476931,1730920254468,-2267.91,0.00027945,2]
[341476932,1730920254480,-500.0,0.00027945,2]
[341476933,1730920254490,-516.06887179,0.00027945,2]
[341476934,1730920254500,-932.36,0.00027945,2]
[341476935,1730920254512,-1161.0,0.00027945,2]
[341476936,1730920254521,-500.0,0.00027945,2]
[341476937,1730920254532,-831.94,0.00027945,2]
[341476938,1730920254542,-726.61,0.00027945,2]
[341476939,1730920254552,-1064.72,0.00027945,2]
[341476940,1730920254562,-500.0,0.00027945,2]
[341476941,1730920254572,-627.41,0.00027945,2]
[341476942,1730920254582,-1820.52,0.00027945,2]
[341476943,1730920254596,-1990.87,0.00027945,2]
[341476944,1730920254605,-500.0,0.00027945,2]
[341476945,1730920254615,-750.06,0.00027945,2]
[341476946,1730920254625,-500.0,0.00027945,2]
[341476947,1730920254638,-5050.46,0.00027945,2]
[341476948,1730920254648,-10580.04,0.00027945,2]
[341476949,1730920254660,-1538.2,0.00027945,2]
[341476950,1730920254672,-500.0,0.00027945,2]
[341476951,1730920254683,-500.0,0.00027945,2]
[341476952,1730920254692,-500.0,0.00027945,2]
[341476953,1730920254702,-1128.8,0.00027945,2]
[341476954,1730920254714,-500.0,0.00027945,2]
[341476955,1730920254726,-500.0,0.00027945,2]
[341476956,1730920254737,-528.85783908,0.00027945,2]
[341476957,1730920254747,-7716.34,0.00027945,2]
[341476958,1730920254758,-3986.66,0.00027945,2]
[341476959,1730920254768,-500.0,0.00027945,2]
[341476960,1730920254779,-656.74,0.00027945,2]
[341476961,1730920254791,-500.63,0.00027945,2]
[341476962,1730920254802,-5027.84,0.00027945,2]
[341476963,1730920254813,-500.0,0.00027945,2]
[341476964,1730920254823,-4036.63,0.00027945,2]
[341476965,1730920254834,-500.0,0.00027945,2]
[341476966,1730920254846,-6250.81,0.00027945,2]
[341476967,1730920254855,-934.04,0.00027945,2]
[341476968,1730920254865,-500.0,0.00027945,2]
[341476969,1730920254875,-504.3551615,0.00027945,2]
[341476970,1730920254885,-500.0,0.00027945,2]
[341476971,1730920254894,-2428.87,0.00027945,2]
[341476972,1730920254904,-3700.97,0.00027945,2]
[341476973,1730920254913,-1135.07,0.00027945,2]
[341476974,1730920254923,-3817.82,0.00027945,2]
[341476975,1730920254933,-3046.7,0.00027945,2]
[341476976,1730920254942,-740.35,0.00027945,2]
[341476977,1730920254951,-3060.48,0.00027945,2]
[341476978,1730920254961,-500.0,0.00027945,2]
[341476979,1730920254970,-500.0,0.00027945,2]
[341476980,1730920254980,-500.0,0.00027945,2]
[341476981,1730920254990,-500.0,0.00027945,2]
[341476982,1730920254999,-1194.34,0.00027945,2]
[341476983,1730920255009,-3836.62,0.00027945,2]
[341476984,1730920255019,-4916.89,0.00027945,2]
[341476985,1730920255028,-500.0,0.00027945,2]
[341476986,1730920255037,-500.0,0.00027945,2]
[341476987,1730920255047,-3245.5,0.00027945,2]
[341476988,1730920255057,-1506.02,0.00027945,2]
[341476989,1730920255067,-500.0,0.00027945,2]
[341476990,1730920255077,-2015.43,0.00027945,2]
[341476991,1730920255087,-500.0,0.00027945,2]
[341476992,1730920255096,-500.0,0.00027945,2]
[341476993,1730920255106,-1997.41,0.00027945,2]
[341476994,1730920255115,-548.49,0.00027945,2]
[341476995,1730920255125,-500.0,0.00027945,2]
[341476996,1730920255136,-500.0,0.00027945,2]
[341476997,1730920255145,-1188.15,0.00027945,2]
[341476998,1730920255155,-472.98332302,0.00027945,2]
[341476999,1730920255165,-3551.02,0.00027945,2]
[341477000,1730920255174,-500.0,0.00027945,2]
[341477001,1730920255184,-9431.91,0.00027945,2]
[341477002,1730920255193,-500.0,0.00027945,2]
[341477003,1730920255203,-500.0,0.00027945,2]
[341477004,1730920255213,-500.0,0.00027945,2]
[341477005,1730920255229,-543.87,0.00027945,2]
[341477006,1730920255240,-500.0,0.00027945,2]
[341477007,1730920255253,-500.0,0.00027945,2]
[341477008,1730920255265,-2959.67,0.00027945,2]
[341477009,1730920255277,-843.81,0.00027945,2]
[341477010,1730920255287,-500.0,0.00027945,2]
[341477011,1730920255298,-500.0,0.00027945,2]
[341477012,1730920255308,-2640.34,0.00027945,2]
[341477013,1730920255318,-2985.74,0.00027945,2]
[341477014,1730920255329,-500.0,0.00027945,2]
[341477015,1730920255340,-643.72,0.00027945,2]
[341477016,1730920255351,-508.89385461,0.00027945,2]
[341477017,1730920255362,-3511.16,0.00027945,2]
[341477018,1730920255372,-500.0,0.00027945,2]
[341477019,1730920255382,-642.61,0.00027945,2]
[341477020,1730920255392,-528.21,0.00027945,2]
[341477021,1730920255403,-500.0,0.00027945,2]
[341477022,1730920255414,-500.0,0.00027945,2]
[341477023,1730920255425,-636.38,0.00027945,2]
[341477024,1730920255437,-500.0,0.00027945,2]
[341477025,1730920255447,-500.0,0.00027945,2]
[341477026,1730920255458,-500.0,0.00027945,2]
[341477027,1730920255468,-500.0,0.00027945,2]
[341477028,1730920255479,-500.0,0.00027945,2]
[341477029,1730920255488,-836.94,0.00027945,2]
[341477030,1730920255498,-500.0,0.00027945,2]
[341477031,1730920255511,-817.7,0.00027945,2]
[341477032,1730920255521,-1645.62,0.00027945,2]
[341477033,1730920255532,-500.0,0.00027945,2]
[341477034,1730920255542,-500.0,0.00027945,2]
[341477035,1730920255552,-820.62,0.00027945,2]
[341477036,1730920255563,-500.0,0.00027945,2]
[341477037,1730920255573,-1697.61,0.00027945,2]
[341477038,1730920255586,-1293.6,0.00027945,2]
[341477039,1730920255597,-500.0,0.00027945,2]
[341477040,1730920255804,-500.0,0.00027945,2]
[341477041,1730920255815,-500.0,0.00027945,2]
[341477042,1730920255825,-643.83,0.00027945,2]
[341477043,1730920255835,-4036.84,0.00027945,2]
[341477044,1730920255846,-2894.45,0.00027945,2]
[341477045,1730920255856,-505.34279181,0.00027945,2]
[341477046,1730920255865,-500.0,0.00027945,2]
[341477047,1730920255876,-500.0,0.00027945,2]
[341477048,1730920255886,-500.0,0.00027945,2]
[341477049,1730920255895,-500.0,0.00027945,2]
[341477050,1730920255905,-500.0,0.00027945,2]
[341477051,1730920255914,-500.0,0.00027945,2]
[341477052,1730920255923,-500.0,0.00027945,2]
[341477053,1730920255933,-500.0,0.00027945,2]
[341477054,1730920255942,-162.63180861,0.00027977,5]
[341477055,1730920255951,-160.25665905,0.00028036,5]
[341477056,1730920255960,-150.30363539,0.00028075,5]
[341477057,1730920255970,-188.34676524,0.00028075,5]
[341477058,1730920255979,-500.0,0.00028075,2]
[341477059,1730920255989,-381.5816167,0.00028119,2]
[341477060,1730920255998,-661.67,0.00028218,2]
[341477061,1730920256008,-150.0,0.00028218,2]
[341477062,1730920256017,-500.0,0.00028219,2]
[341477063,1730920256026,-500.0,0.00028219,2]
[341477064,1730920256036,-500.0,0.00028219,2]
[341477065,1730920256045,-500.0,0.00028219,2]
[341477066,1730920256054,-2920.66,0.00028219,2]
[341477067,1730920256064,-500.0,0.00028219,2]
[341477068,1730920256073,-614.25,0.00028219,2]
[341477069,1730920256082,-574.18,0.00028219,2]
[341477070,1730920256094,-500.0,0.00028219,2]
[341477071,1730920256103,-500.0,0.00028219,2]
[341477072,1730920256113,-500.0,0.00028219,2]
[341477073,1730920256122,-500.0,0.00028219,2]
[341477074,1730920256132,-1205.75,0.00028219,2]
[341477075,1730920256141,-750.76,0.00028219,2]
[341477076,1730920256151,-500.0,0.00028219,2]
[341477077,1730920256160,-500.0,0.00028219,2]
[341477078,1730920256169,-500.0,0.00028219,2]
[341477079,1730920256179,-500.0,0.00028219,2]
[341477080,1730920256189,-550.1,0.00028219,2]
[341477081,1730920256198,-1062.35,0.00028219,2]
[341477082,1730920256207,-500.0,0.00028219,2]
[341477083,1730920256217,-997.57,0.00028219,2]
[341477084,1730920256227,-500.0,0.00028219,2]
[341477085,1730920256236,-500.0,0.00028219,2]
[341477086,1730920256245,-500.0,0.00028219,2]
[341477087,1730920256254,-500.0,0.00028219,2]
[341477088,1730920256263,-500.0,0.00028219,2]
[341477089,1730920256273,-500.0,0.00028219,2]
[341477090,1730920256283,-500.0,0.00028219,2]
[341477091,1730920256292,-500.0,0.00028219,2]
[341477092,1730920256301,-500.0,0.00028219,2]
[341477093,1730920256311,-1292.06,0.00028219,2]
[341477094,1730920256321,-500.0,0.00028219,2]
[341477095,1730920256330,-500.0,0.00028219,2]
[341477096,1730920256341,-500.0,0.00028219,2]
[341477097,1730920256351,-500.0,0.00028219,2]
[341477098,1730920256360,-621.40367455,0.00028219,2]
[341477099,1730920256370,-500.0,0.00028219,2]
[341477100,1730920256379,-500.0,0.00028219,2]
[341477101,1730920256388,-249.28,0.00028219,2]
[341477102,1730920256397,-500.0,0.00028219,2]
[341477103,1730920256406,-500.0,0.00028219,2]
[341477104,1730920256416,-1826.45,0.00028219,2]
[341477105,1730920256426,-621.32,0.00028219,2]
[341477106,1730920256435,-500.0,0.00028219,2]
[341477107,1730920256444,-546.43,0.00028219,2]
[341477108,1730920256454,-663.78,0.00028219,2]
[341477109,1730920256463,-500.0,0.00028219,2]
[341477110,1730920256473,-500.0,0.00028219,2]
[341477111,1730920256482,-509.79052535,0.00028219,2]
[341477112,1730920256492,-500.0,0.00028219,2]
[341477113,1730920256501,-617.91,0.00028219,2]
[341477114,1730920256511,-500.0,0.00028219,2]
[341477115,1730920256521,-500.0,0.00028219,2]
[341477116,1730920256531,-500.0,0.00028219,2]
[341477117,1730920256540,-559.63326711,0.00028219,2]
[341477118,1730920256550,-1790.04,0.00028219,2]
[341477119,1730920256560,-500.0,0.00028219,2]
[341477120,1730920256570,-500.0,0.00028219,2]
[341477121,1730920256579,-500.0,0.00028219,2]
[341477122,1730920256591,-1554.56,0.00028219,2]
[341477123,1730920256602,-500.0,0.00028219,2]
[341477124,1730920256612,-500.0,0.00028219,2]
[341477125,1730920256621,-500.0,0.00028219,2]
[341477126,1730920256634,-525.88,0.00028219,2]
[341477127,1730920256643,-500.0,0.00028219,2]
[341477128,1730920256654,-500.0,0.00028219,2]
[341477129,1730920256664,-711.29,0.00028219,2]
[341477130,1730920256674,-500.0,0.00028219,2]
[341477131,1730920256684,-502.5216341,0.00028219,2]
[341477132,1730920256694,-1234.48,0.00028219,2]
[341477133,1730920256704,-500.0,0.00028219,2]
[341477134,1730920256713,-500.0,0.00028219,2]
[341477135,1730920256724,-500.0,0.00028219,2]
[341477136,1730920256734,-500.0,0.00028219,2]
[341477137,1730920256744,-500.0,0.00028219,2]
[341477138,1730920256753,-1153.06,0.00028219,2]
[341477139,1730920256763,-500.0,0.00028219,2]
[341477140,1730920256772,-500.0,0.00028219,2]
[341477141,1730920256782,-500.0,0.00028219,2]
[341477142,1730920256791,-500.0,0.00028219,2]
[341477143,1730920256801,-500.0,0.00028219,2]
[341477144,1730920256810,-500.0,0.00028219,2]
[341477145,1730920256820,-957.34,0.00028219,2]
[341477146,1730920256829,-500.0,0.00028219,2]
[341477147,1730920256840,-500.0,0.00028219,2]
[341477148,1730920256849,-500.0,0.00028219,2]
[341477149,1730920256859,-500.0,0.00028219,2]
[341477150,1730920256868,-500.0,0.00028219,2]
[341477151,1730920256878,-1196.66,0.00028219,2]
[341477152,1730920256887,-500.0,0.00028219,2]
[341477153,1730920256897,-500.0,0.00028219,2]
[341477154,1730920256907,-500.0,0.00028219,2]
[341477155,1730920256917,-1001.64,0.00028219,2]
[341477156,1730920256926,-500.0,0.00028219,2]
[341477157,1730920256936,-1472.58,0.00028219,2]
[341477158,1730920256945,-500.0,0.00028219,2]
[341477159,1730920256955,-500.0,0.00028219,2]
[341477160,1730920256965,-500.0,0.00028219,2]
[341477161,1730920256975,-1605.02,0.00028219,2]